[Event "Live Chess"]
[Site "Chess.com"]
[Date "2024.06.02"]
[Round "-"]
[White "elephantgerrald"]
[Black "best137"]
[Result "0-1"]
[WhiteElo "851"]
[BlackElo "1509"]
[TimeControl "300"]
[EndTime "1:57:23 PDT"]
[Termination "best137 won by checkmate"]

1. e4 {[%clk 0:04:58.7]} 1... c6 {[%clk 0:04:57.6]} 2. Nf3 {[%clk 0:04:57.2]}
2... d5 {[%clk 0:04:56.6]} 3. exd5 {[%clk 0:04:56.1]} 3... cxd5 {[%clk
0:04:56.5]} 4. Nc3 {[%clk 0:04:54.8]} 4... Bg4 {[%clk 0:04:55.6]} 5. Be2 {[%clk
0:04:53.6]} 5... Nf6 {[%clk 0:04:54]} 6. d4 {[%clk 0:04:52.6]} 6... Nc6 {[%clk
0:04:52.8]} 7. O-O {[%clk 0:04:50.9]} 7... e6 {[%clk 0:04:50.9]} 8. h3 {[%clk
0:04:49.7]} 8... Bh5 {[%clk 0:04:48]} 9. Bg5 {[%clk 0:04:48.4]} 9... Be7 {[%clk
0:04:46]} 10. Qd3 {[%clk 0:04:33.3]} 10... O-O {[%clk 0:04:40.1]} 11. b3 {[%clk
0:03:51.5]} 11... Bg6 {[%clk 0:04:31.4]} 12. Qe3 {[%clk 0:03:45.3]} 12... Ne4
{[%clk 0:04:05.8]} 13. Nxe4 {[%clk 0:03:13.1]} 13... Bxe4 {[%clk 0:03:54.1]} 14.
c3 {[%clk 0:03:02.2]} 14... Bxf3 {[%clk 0:03:30.2]} 15. Qxf3 {[%clk 0:02:57.1]}
15... Bxg5 {[%clk 0:03:25.9]} 16. Bd3 {[%clk 0:02:52.1]} 16... Qf6 {[%clk
0:03:17.6]} 17. Qh5 {[%clk 0:02:43]} 17... Qh6 {[%clk 0:03:15.5]} 18. Qf3 {[%clk
0:02:36.7]} 18... Rad8 {[%clk 0:02:56.6]} 19. c4 {[%clk 0:02:20.8]} 19... dxc4
{[%clk 0:02:51.4]} 20. Bxc4 {[%clk 0:02:00.2]} 20... Nxd4 {[%clk 0:02:42.7]} 21.
Qxb7 {[%clk 0:01:56.1]} 21... a5 {[%clk 0:02:14.8]} 22. Qa7 {[%clk 0:01:41.7]}
22... Nc6 {[%clk 0:01:58.6]} 23. Qb6 {[%clk 0:01:35]} 23... e5 {[%clk
0:01:51.6]} 24. Bd5 {[%clk 0:01:02.5]} 24... Rxd5 {[%clk 0:01:42.5]} 25. f4
{[%clk 0:00:43.9]} 25... Bxf4 {[%clk 0:01:34.8]} 26. g3 {[%clk 0:00:41.2]} 26...
Be3+ {[%clk 0:01:33.3]} 27. Qxe3 {[%clk 0:00:34.3]} 27... Qxe3+ {[%clk
0:01:33.2]} 28. Rf2 {[%clk 0:00:32.8]} 28... Rfd8 {[%clk 0:01:29.4]} 29. Rf1
{[%clk 0:00:32.2]} 29... Rd1 {[%clk 0:01:26.9]} 30. h4 {[%clk 0:00:32.1]} 30...
Rxf1+ {[%clk 0:01:24.1]} 31. Kxf1 {[%clk 0:00:31.5]} 31... Rd1+ {[%clk
0:01:19.5]} 32. Kg2 {[%clk 0:00:31.4]} 32... Rd2 {[%clk 0:01:18]} 33. Rxd2
{[%clk 0:00:29.3]} 33... Qxd2+ {[%clk 0:01:17]} 34. Kh3 {[%clk 0:00:29.1]} 34...
Qxa2 {[%clk 0:01:14.7]} 35. Kg4 {[%clk 0:00:29]} 35... Qxb3 {[%clk 0:01:10.2]}
36. Kh3 {[%clk 0:00:28.9]} 36... Qe6+ {[%clk 0:01:07.6]} 37. Kg2 {[%clk
0:00:27.9]} 37... a4 {[%clk 0:01:07.1]} 38. Kh2 {[%clk 0:00:27.6]} 38... a3
{[%clk 0:01:06.4]} 39. Kg2 {[%clk 0:00:27.1]} 39... a2 {[%clk 0:01:05.4]} 40.
Kh2 {[%clk 0:00:27]} 40... a1=Q {[%clk 0:01:03.4]} 41. Kg2 {[%clk 0:00:26.9]}
41... Qb2+ {[%clk 0:01:02.5]} 42. Kf3 {[%clk 0:00:26.8]} 42... e4+ {[%clk
0:00:59.8]} 43. Kf4 {[%clk 0:00:25.5]} 43... Qee5+ {[%clk 0:00:56.7]} 44. Ke3
{[%clk 0:00:24.6]} 44... Qed4+ {[%clk 0:00:50.6]} 45. Kf4 {[%clk 0:00:23.5]}
45... Qbf2+ {[%clk 0:00:49.3]} 46. Kg5 {[%clk 0:00:22.3]} 46... h6+ {[%clk
0:00:46.3]} 47. Kh5 {[%clk 0:00:21.4]} 47... Qf3+ {[%clk 0:00:44]} 48. g4 {[%clk
0:00:20]} 48... Qe5# {[%clk 0:00:42.2]} 0-1

[Event "Live Chess"]
[Site "Chess.com"]
[Date "2024.06.02"]
[Round "-"]
[White "GEMdzq"]
[Black "Queensandpawns"]
[Result "0-1"]
[WhiteElo "2292"]
[BlackElo "2278"]
[TimeControl "300"]
[EndTime "1:57:28 PDT"]
[Termination "Queensandpawns won by resignation"]

1. e4 {[%clk 0:04:58]} 1... e5 {[%clk 0:04:59.5]} 2. d4 {[%clk 0:04:56.2]} 2...
Nf6 {[%clk 0:04:59.4]} 3. dxe5 {[%clk 0:04:55]} 3... Nxe4 {[%clk 0:04:58.9]} 4.
Bd3 {[%clk 0:04:48.6]} 4... Nc5 {[%clk 0:04:58]} 5. Nf3 {[%clk 0:04:47]} 5...
Nc6 {[%clk 0:04:57.4]} 6. O-O {[%clk 0:04:45.6]} 6... Nxd3 {[%clk 0:04:56.8]} 7.
Qxd3 {[%clk 0:04:44.6]} 7... Bc5 {[%clk 0:04:55.9]} 8. Bg5 {[%clk 0:04:42.3]}
8... Be7 {[%clk 0:04:53.4]} 9. Be3 {[%clk 0:04:40.8]} 9... O-O {[%clk
0:04:52.6]} 10. Nc3 {[%clk 0:04:37.1]} 10... d6 {[%clk 0:04:51.9]} 11. exd6
{[%clk 0:04:32.9]} 11... Bxd6 {[%clk 0:04:51.8]} 12. Ng5 {[%clk 0:04:30.4]}
12... g6 {[%clk 0:04:46.1]} 13. Rad1 {[%clk 0:04:14]} 13... Bf5 {[%clk
0:04:42.8]} 14. Qc4 {[%clk 0:03:43.4]} 14... Ne5 {[%clk 0:04:39.3]} 15. Qh4
{[%clk 0:03:41.4]} 15... h5 {[%clk 0:04:33.4]} 16. Bd4 {[%clk 0:03:19.2]} 16...
Ng4 {[%clk 0:04:20]} 17. f4 {[%clk 0:03:15.6]} 17... c5 {[%clk 0:04:10.9]} 18.
Bf2 {[%clk 0:03:14.1]} 18... Qc7 {[%clk 0:04:07.6]} 19. Nd5 {[%clk 0:03:11.2]}
19... Qc6 {[%clk 0:04:04.5]} 20. h3 {[%clk 0:02:56.4]} 20... Nxf2 {[%clk
0:03:53.8]} 21. Qxf2 {[%clk 0:02:56.3]} 21... c4 {[%clk 0:03:43]} 22. Qh4 {[%clk
0:02:39]} 22... Rad8 {[%clk 0:03:40.8]} 23. Nf6+ {[%clk 0:02:37.5]} 23... Kg7
{[%clk 0:03:39.4]} 24. Ngh7 {[%clk 0:02:20.8]} 24... Be7 {[%clk 0:03:33.5]} 25.
Nxh5+ {[%clk 0:02:05.5]} 25... Kxh7 {[%clk 0:03:04.1]} 26. Qxe7 {[%clk
0:02:03.3]} 26... gxh5 {[%clk 0:03:02.5]} 27. Rxd8 {[%clk 0:01:36.8]} 27... Qb6+
{[%clk 0:03:01.3]} 28. Kh2 {[%clk 0:01:28]} 28... Qxd8 {[%clk 0:03:00.4]} 29.
Qe5 {[%clk 0:01:26.4]} 29... Qd7 {[%clk 0:02:53.4]} 30. g4 {[%clk 0:01:19.3]}
30... Re8 {[%clk 0:02:32.1]} 31. Qxf5+ {[%clk 0:01:17.3]} 31... Qxf5 {[%clk
0:02:31.6]} 32. gxf5 {[%clk 0:01:17.2]} 32... Re2+ {[%clk 0:02:31.3]} 33. Kg3
{[%clk 0:01:15.5]} 33... Rxc2 {[%clk 0:02:30.6]} 34. f6 {[%clk 0:01:05.5]} 34...
Kg6 {[%clk 0:02:28]} 35. f5+ {[%clk 0:00:56.8]} 35... Kxf6 {[%clk 0:02:27]} 36.
Rf4 {[%clk 0:00:40.8]} 36... b5 {[%clk 0:02:22.7]} 37. a4 {[%clk 0:00:39.7]}
37... a6 {[%clk 0:02:21.6]} 38. axb5 {[%clk 0:00:38.4]} 38... axb5 {[%clk
0:02:21.5]} 39. Kh4 {[%clk 0:00:36.9]} 39... Rxb2 {[%clk 0:02:20.2]} 40. Kxh5
{[%clk 0:00:35.8]} 40... Rh2 {[%clk 0:02:14.9]} 41. Kg4 {[%clk 0:00:34.3]} 41...
c3 {[%clk 0:02:13.2]} 42. Rf1 {[%clk 0:00:29.3]} 42... c2 {[%clk 0:02:11.3]} 43.
Kf4 {[%clk 0:00:27.2]} 43... b4 {[%clk 0:02:10.2]} 44. Ke4 {[%clk 0:00:26.2]}
44... b3 {[%clk 0:02:09.2]} 45. Kd3 {[%clk 0:00:25.8]} 45... b2 {[%clk
0:02:08.9]} 0-1

[Event "Live Chess"]
[Site "Chess.com"]
[Date "2024.06.02"]
[Round "-"]
[White "raimundklein"]
[Black "MasterCaptainHaddock"]
[Result "0-1"]
[WhiteElo "1582"]
[BlackElo "1811"]
[TimeControl "300"]
[EndTime "1:57:30 PDT"]
[Termination "MasterCaptainHaddock won by checkmate"]

1. e4 {[%clk 0:04:58.1]} 1... c6 {[%clk 0:04:59.5]} 2. Nf3 {[%clk 0:04:56]} 2...
d5 {[%clk 0:04:59.3]} 3. exd5 {[%clk 0:04:55.3]} 3... cxd5 {[%clk 0:04:53.1]} 4.
Ne5 {[%clk 0:04:54]} 4... Nc6 {[%clk 0:04:51.6]} 5. Bb5 {[%clk 0:04:51.7]} 5...
Qb6 {[%clk 0:04:45.3]} 6. Qf3 {[%clk 0:04:34.5]} 6... Nf6 {[%clk 0:04:38.9]} 7.
Ba4 {[%clk 0:04:22.3]} 7... e6 {[%clk 0:04:26.4]} 8. O-O {[%clk 0:04:17]} 8...
Bd6 {[%clk 0:04:24.3]} 9. Nxc6 {[%clk 0:04:07.5]} 9... bxc6 {[%clk 0:04:21.6]}
10. c3 {[%clk 0:04:05]} 10... Bb7 {[%clk 0:04:20.7]} 11. d4 {[%clk 0:04:03.4]}
11... O-O {[%clk 0:04:17.4]} 12. Bc2 {[%clk 0:03:46.6]} 12... Qc7 {[%clk
0:04:12.7]} 13. Nd2 {[%clk 0:03:33.2]} 13... Bxh2+ {[%clk 0:04:10.9]} 14. Kh1
{[%clk 0:03:31.5]} 14... Bd6 {[%clk 0:04:08.1]} 15. Qh3 {[%clk 0:03:26.4]} 15...
e5 {[%clk 0:03:59.4]} 16. dxe5 {[%clk 0:03:21.7]} 16... Bxe5 {[%clk 0:03:59.3]}
17. Nf3 {[%clk 0:03:20.4]} 17... Bf4 {[%clk 0:03:56]} 18. g3 {[%clk 0:03:10.1]}
18... Bxc1 {[%clk 0:03:53]} 19. Raxc1 {[%clk 0:03:10]} 19... c5 {[%clk 0:03:51]}
20. Ng5 {[%clk 0:03:03.6]} 20... d4+ {[%clk 0:03:49.8]} 21. Kg1 {[%clk
0:02:52.9]} 21... h6 {[%clk 0:03:48.5]} 22. f4 {[%clk 0:02:32]} 22... Rae8
{[%clk 0:03:15]} 23. Nf3 {[%clk 0:02:27.9]} 23... dxc3 {[%clk 0:03:09.4]} 24.
bxc3 {[%clk 0:02:26.1]} 24... Qc6 {[%clk 0:03:02.3]} 25. Ne5 {[%clk 0:02:19.2]}
25... Qb6 {[%clk 0:02:48.1]} 26. c4 {[%clk 0:02:14.7]} 26... Qb2 {[%clk
0:02:35.7]} 27. g4 {[%clk 0:02:09.8]} 27... Qd4+ {[%clk 0:02:27]} 28. Rf2 {[%clk
0:01:59.7]} 28... Rxe5 {[%clk 0:02:21.6]} 29. fxe5 {[%clk 0:01:57.8]} 29... Nxg4
{[%clk 0:02:20.6]} 30. Rf1 {[%clk 0:01:45.7]} 30... Nxf2 {[%clk 0:02:13.2]} 31.
Rxf2 {[%clk 0:01:45.6]} 31... Qxe5 {[%clk 0:02:10.4]} 32. Qd3 {[%clk 0:01:36.5]}
32... Qg5+ {[%clk 0:02:05.1]} 33. Kh2 {[%clk 0:01:29.5]} 33... Qh4+ {[%clk
0:02:02.2]} 34. Kg1 {[%clk 0:01:27.1]} 34... Qh1# {[%clk 0:02:00.6]} 0-1

[Event "Live Chess"]
[Site "Chess.com"]
[Date "2024.06.02"]
[Round "-"]
[White "vincents82"]
[Black "juniortay"]
[Result "0-1"]
[WhiteElo "2003"]
[BlackElo "2390"]
[TimeControl "300"]
[EndTime "1:58:09 PDT"]
[Termination "juniortay won by resignation"]

1. e4 {[%clk 0:04:56.8]} 1... e5 {[%clk 0:04:59.4]} 2. Nf3 {[%clk 0:04:53.1]}
2... Nf6 {[%clk 0:04:58.9]} 3. Nxe5 {[%clk 0:04:50.2]} 3... Nc6 {[%clk
0:04:58.4]} 4. Nxc6 {[%clk 0:04:48.7]} 4... dxc6 {[%clk 0:04:58.3]} 5. d3 {[%clk
0:04:46.1]} 5... Bc5 {[%clk 0:04:57.6]} 6. Be2 {[%clk 0:04:45.5]} 6... h5 {[%clk
0:04:52.6]} 7. c3 {[%clk 0:04:44.4]} 7... Bb6 {[%clk 0:04:51.2]} 8. O-O {[%clk
0:04:39.9]} 8... Ng4 {[%clk 0:04:49.6]} 9. Bxg4 {[%clk 0:04:36.2]} 9... hxg4
{[%clk 0:04:48.5]} 10. Bf4 {[%clk 0:04:35]} 10... Be6 {[%clk 0:04:37.7]} 11. Bg3
{[%clk 0:04:28.8]} 11... Qe7 {[%clk 0:04:31.5]} 12. Qc2 {[%clk 0:04:23.2]} 12...
O-O-O {[%clk 0:04:29.6]} 13. Nd2 {[%clk 0:04:18.4]} 13... Rh5 {[%clk 0:04:25.3]}
14. d4 {[%clk 0:04:16.1]} 14... Rdh8 {[%clk 0:04:21.9]} 15. a4 {[%clk
0:04:13.4]} 15... a5 {[%clk 0:04:20.1]} 16. b4 {[%clk 0:04:12.2]} 16... f5
{[%clk 0:04:17.9]} 17. bxa5 {[%clk 0:03:52]} 17... Bxa5 {[%clk 0:04:16]} 18.
exf5 {[%clk 0:03:51]} 18... Bxf5 {[%clk 0:04:13.9]} 19. Qb3 {[%clk 0:03:44.6]}
19... g5 {[%clk 0:04:03.9]} 20. Nc4 {[%clk 0:03:43.2]} 20... Be6 {[%clk
0:03:53.2]} 21. Rae1 {[%clk 0:03:41.9]} 21... Bxc4 {[%clk 0:03:39]} 22. Qxc4
{[%clk 0:03:34]} 22... Qh7 {[%clk 0:03:38.2]} 23. Qe6+ {[%clk 0:03:25.3]} 23...
Kb8 {[%clk 0:03:37.2]} 24. Qe5 {[%clk 0:03:24.5]} 24... Bxc3 {[%clk 0:03:28.6]}
25. h3 {[%clk 0:02:32]} 25... gxh3 {[%clk 0:03:24.6]} 26. Qe7 {[%clk 0:02:28.3]}
26... Bxe1 {[%clk 0:03:07.1]} 27. Bxc7+ {[%clk 0:02:19.2]} 27... Ka8 {[%clk
0:03:05.2]} 28. Qxe1 {[%clk 0:02:10.2]} 28... Qxc7 {[%clk 0:02:57.9]} 0-1

[Event "Live Chess"]
[Site "Chess.com"]
[Date "2024.06.02"]
[Round "-"]
[White "Tushinskiy"]
[Black "ggosyaa"]
[Result "1-0"]
[WhiteElo "2290"]
[BlackElo "586"]
[TimeControl "300"]
[EndTime "1:58:10 PDT"]
[Termination "Tushinskiy won by checkmate"]

1. d4 {[%clk 0:04:57.4]} 1... d5 {[%clk 0:04:57]} 2. c3 {[%clk 0:04:57.3]} 2...
Nf6 {[%clk 0:04:53.5]} 3. Nf3 {[%clk 0:04:57.2]} 3... Bf5 {[%clk 0:04:50.9]} 4.
Bf4 {[%clk 0:04:56.9]} 4... e6 {[%clk 0:04:48]} 5. Bg3 {[%clk 0:04:56.8]} 5...
Nc6 {[%clk 0:04:46.8]} 6. Nbd2 {[%clk 0:04:55.6]} 6... Be7 {[%clk 0:04:43.5]} 7.
e3 {[%clk 0:04:54.6]} 7... O-O {[%clk 0:04:40.2]} 8. Bb5 {[%clk 0:04:52.6]} 8...
Ne4 {[%clk 0:04:33.3]} 9. Nxe4 {[%clk 0:04:47.8]} 9... Bxe4 {[%clk 0:04:30]} 10.
O-O {[%clk 0:04:45.7]} 10... Bf6 {[%clk 0:04:20.1]} 11. Bxc6 {[%clk 0:04:41.9]}
11... bxc6 {[%clk 0:04:18.1]} 12. Qa4 {[%clk 0:04:38.6]} 12... Bd3 {[%clk
0:04:11]} 13. Rfe1 {[%clk 0:04:34.3]} 13... Qb8 {[%clk 0:04:02.3]} 14. b3 {[%clk
0:04:29]} 14... c5 {[%clk 0:03:53.5]} 15. Rac1 {[%clk 0:04:24.7]} 15... c4
{[%clk 0:03:34.8]} 16. b4 {[%clk 0:04:20.3]} 16... Qb7 {[%clk 0:03:18.5]} 17.
Qa5 {[%clk 0:04:17.2]} 17... Be4 {[%clk 0:03:12.8]} 18. Qxc7 {[%clk 0:04:14.1]}
18... Qxc7 {[%clk 0:03:11.3]} 19. Bxc7 {[%clk 0:04:14]} 19... Rac8 {[%clk
0:03:06.8]} 20. Bg3 {[%clk 0:04:11.6]} 20... a5 {[%clk 0:03:01.5]} 21. b5 {[%clk
0:04:08.9]} 21... Rb8 {[%clk 0:02:56.8]} 22. Bxb8 {[%clk 0:04:05.2]} 22... Rxb8
{[%clk 0:02:56.5]} 23. a4 {[%clk 0:04:04.3]} 23... Bxf3 {[%clk 0:02:51.9]} 24.
gxf3 {[%clk 0:04:02.3]} 24... e5 {[%clk 0:02:51.6]} 25. Kg2 {[%clk 0:03:56.9]}
25... exd4 {[%clk 0:02:49.4]} 26. exd4 {[%clk 0:03:55.2]} 26... h6 {[%clk
0:02:46]} 27. f4 {[%clk 0:03:51.3]} 27... g5 {[%clk 0:02:39.3]} 28. fxg5 {[%clk
0:03:47.1]} 28... Bxg5 {[%clk 0:02:38.4]} 29. Rcd1 {[%clk 0:03:46.5]} 29... Kg7
{[%clk 0:02:35.8]} 30. Kf3 {[%clk 0:03:44.4]} 30... f5 {[%clk 0:02:32.6]} 31.
Re5 {[%clk 0:03:42]} 31... Rd8 {[%clk 0:02:27.1]} 32. Rxf5 {[%clk 0:03:37.1]}
32... Be7 {[%clk 0:02:22.9]} 33. Rg1+ {[%clk 0:03:30.3]} 33... Kh7 {[%clk
0:02:14.1]} 34. Rf7+ {[%clk 0:03:28.2]} 34... Kh8 {[%clk 0:02:07.8]} 35. Rxe7
{[%clk 0:03:24.8]} 35... Rf8+ {[%clk 0:02:05.7]} 36. Ke3 {[%clk 0:03:23.1]}
36... Rg8 {[%clk 0:01:54.5]} 37. Rxg8+ {[%clk 0:03:21.3]} 37... Kxg8 {[%clk
0:01:54.2]} 38. b6 {[%clk 0:03:20.8]} 38... Kf8 {[%clk 0:01:53.5]} 39. Rc7
{[%clk 0:03:19.1]} 39... Ke8 {[%clk 0:01:52.9]} 40. b7 {[%clk 0:03:19]} 40...
Kd8 {[%clk 0:01:52.4]} 41. b8=Q# {[%clk 0:03:15.3]} 1-0

[Event "Live Chess"]
[Site "Chess.com"]
[Date "2024.06.02"]
[Round "-"]
[White "jellhhggffhjjjjjj"]
[Black "LL220284LL"]
[Result "0-1"]
[WhiteElo "436"]
[BlackElo "2502"]
[TimeControl "300"]
[EndTime "1:58:35 PDT"]
[Termination "LL220284LL won by resignation"]

1. d4 {[%clk 0:04:52.8]} 1... Nf6 {[%clk 0:04:59.2]} 2. Nf3 {[%clk 0:04:51.3]}
2... c6 {[%clk 0:04:58.1]} 3. Bf4 {[%clk 0:04:49.8]} 3... d6 {[%clk 0:04:57]} 4.
e3 {[%clk 0:04:49.4]} 4... Bf5 {[%clk 0:04:56.5]} 5. c4 {[%clk 0:04:47.6]} 5...
Nbd7 {[%clk 0:04:55.9]} 6. Nc3 {[%clk 0:04:47.1]} 6... h6 {[%clk 0:04:55.3]} 7.
Be2 {[%clk 0:04:42.4]} 7... e6 {[%clk 0:04:53.8]} 8. O-O {[%clk 0:04:40.6]} 8...
Be7 {[%clk 0:04:52.7]} 9. d5 {[%clk 0:04:38.8]} 9... e5 {[%clk 0:04:48.2]} 10.
dxc6 {[%clk 0:04:36]} 10... bxc6 {[%clk 0:04:40.6]} 11. Bg3 {[%clk 0:04:34]}
11... O-O {[%clk 0:04:38]} 12. b3 {[%clk 0:04:31.8]} 12... Nc5 {[%clk
0:04:36.7]} 13. b4 {[%clk 0:04:19.9]} 13... Nce4 {[%clk 0:04:29.7]} 14. Nxe4
{[%clk 0:04:15.2]} 14... Nxe4 {[%clk 0:04:29.6]} 15. Bd3 {[%clk 0:04:12.9]}
15... Nxg3 {[%clk 0:04:27]} 16. fxg3 {[%clk 0:04:09.7]} 16... e4 {[%clk
0:04:18.9]} 17. Nh4 {[%clk 0:04:03.2]} 17... Bh7 {[%clk 0:04:15.7]} 18. Be2
{[%clk 0:03:57.4]} 18... Rb8 {[%clk 0:04:11.5]} 19. Qe1 {[%clk 0:03:43.8]} 19...
Qb6 {[%clk 0:03:58.3]} 20. a3 {[%clk 0:03:41.4]} 20... Qxe3+ {[%clk 0:03:56]}
21. Qf2 {[%clk 0:03:32.5]} 21... Qxf2+ {[%clk 0:03:52.7]} 22. Rxf2 {[%clk
0:03:29.7]} 22... a5 {[%clk 0:03:46.3]} 23. Rb1 {[%clk 0:03:25.9]} 23... axb4
{[%clk 0:03:43.7]} 24. axb4 {[%clk 0:03:21.9]} 24... e3 {[%clk 0:03:42.5]} 25.
Rf3 {[%clk 0:03:17.7]} 25... Bxb1 {[%clk 0:03:28.4]} 26. Nf5 {[%clk 0:03:10.5]}
26... Bxf5 {[%clk 0:03:26.7]} 27. Rxf5 {[%clk 0:03:09.5]} 27... Rxb4 {[%clk
0:03:26.6]} 28. Ra5 {[%clk 0:03:07]} 28... Rb1+ {[%clk 0:03:25.2]} 29. Bf1
{[%clk 0:03:02.8]} 29... e2 {[%clk 0:03:25.1]} 0-1

[Event "Live Chess"]
[Site "Chess.com"]
[Date "2024.06.02"]
[Round "-"]
[White "TigerTank70"]
[Black "Keithdfg"]
[Result "1-0"]
[WhiteElo "2221"]
[BlackElo "1761"]
[TimeControl "300"]
[EndTime "1:58:38 PDT"]
[Termination "TigerTank70 won by resignation"]

1. e4 {[%clk 0:04:57.8]} 1... d6 {[%clk 0:04:59]} 2. d4 {[%clk 0:04:56.4]} 2...
Nf6 {[%clk 0:04:58.9]} 3. Nc3 {[%clk 0:04:54.8]} 3... Nbd7 {[%clk 0:04:58.8]} 4.
Be2 {[%clk 0:04:53.7]} 4... e5 {[%clk 0:04:58.7]} 5. d5 {[%clk 0:04:51]} 5...
Be7 {[%clk 0:04:57.4]} 6. f4 {[%clk 0:04:48.2]} 6... O-O {[%clk 0:04:57.3]} 7.
Nf3 {[%clk 0:04:46.7]} 7... exf4 {[%clk 0:04:53.5]} 8. Bxf4 {[%clk 0:04:45]}
8... c6 {[%clk 0:04:53.4]} 9. O-O {[%clk 0:04:42.7]} 9... cxd5 {[%clk 0:04:51]}
10. Nxd5 {[%clk 0:04:40.9]} 10... Nxd5 {[%clk 0:04:49]} 11. Qxd5 {[%clk
0:04:38.7]} 11... Nf6 {[%clk 0:04:47.5]} 12. Qd4 {[%clk 0:04:34.5]} 12... Qb6
{[%clk 0:04:42]} 13. Qxb6 {[%clk 0:04:32.7]} 13... axb6 {[%clk 0:04:27.9]} 14.
Rfd1 {[%clk 0:04:32.6]} 14... Nxe4 {[%clk 0:04:24.8]} 15. a3 {[%clk 0:04:26.3]}
15... Be6 {[%clk 0:04:21.5]} 16. c3 {[%clk 0:04:14.7]} 16... d5 {[%clk
0:04:18.7]} 17. Nd4 {[%clk 0:04:01.1]} 17... Bc5 {[%clk 0:04:16.6]} 18. Bf3
{[%clk 0:03:55.2]} 18... f5 {[%clk 0:04:10.4]} 19. Kf1 {[%clk 0:03:41.6]} 19...
g5 {[%clk 0:04:04.5]} 20. Nxe6 {[%clk 0:03:34.6]} 1-0

[Event "Live Chess"]
[Site "Chess.com"]
[Date "2024.06.02"]
[Round "-"]
[White "NAZRIZ1977"]
[Black "AndyJWise"]
[Result "1-0"]
[WhiteElo "2124"]
[BlackElo "1036"]
[TimeControl "300"]
[EndTime "1:58:50 PDT"]
[Termination "NAZRIZ1977 won by resignation"]

1. d4 {[%clk 0:04:57.4]} 1... Nf6 {[%clk 0:04:56.3]} 2. Nc3 {[%clk 0:04:56.5]}
2... g6 {[%clk 0:04:53.7]} 3. e4 {[%clk 0:04:55.5]} 3... d6 {[%clk 0:04:51.7]}
4. f3 {[%clk 0:04:54.5]} 4... Bg7 {[%clk 0:04:50.2]} 5. Be3 {[%clk 0:04:54]}
5... O-O {[%clk 0:04:48]} 6. Qd2 {[%clk 0:04:53.5]} 6... e5 {[%clk 0:04:41.7]}
7. Nge2 {[%clk 0:04:52.5]} 7... Nc6 {[%clk 0:04:39]} 8. O-O-O {[%clk 0:04:50.9]}
8... a5 {[%clk 0:04:34.9]} 9. g4 {[%clk 0:04:48.2]} 9... a4 {[%clk 0:04:28.3]}
10. h4 {[%clk 0:04:43.3]} 10... exd4 {[%clk 0:04:19.1]} 11. Nxd4 {[%clk
0:04:41.3]} 11... Nxd4 {[%clk 0:04:18.2]} 12. Bxd4 {[%clk 0:04:39.6]} 12... c5
{[%clk 0:04:07.7]} 13. Bxc5 {[%clk 0:04:30.4]} 13... Nxe4 {[%clk 0:03:48.8]} 14.
Nxe4 {[%clk 0:04:27.6]} 14... Be6 {[%clk 0:03:24.1]} 15. Qxd6 {[%clk 0:04:24.1]}
15... Qxd6 {[%clk 0:03:19.7]} 16. Bxd6 {[%clk 0:04:18.5]} 16... Rfd8 {[%clk
0:03:17.6]} 17. Bb5 {[%clk 0:04:14.1]} 17... Bxa2 {[%clk 0:03:14.5]} 18. Ba3
{[%clk 0:04:11.4]} 18... Rxd1+ {[%clk 0:03:08.5]} 19. Rxd1 {[%clk 0:04:09.3]}
19... Rc8 {[%clk 0:03:07.6]} 20. Kd2 {[%clk 0:03:55.8]} 20... Bc4 {[%clk
0:02:58]} 21. Bxc4 {[%clk 0:03:47.8]} 21... Rxc4 {[%clk 0:02:56.8]} 22. c3
{[%clk 0:03:44.9]} 22... Bh6+ {[%clk 0:02:53.2]} 23. g5 {[%clk 0:03:43]} 23...
Bg7 {[%clk 0:02:51.3]} 24. Kd3 {[%clk 0:03:42.4]} 24... Rc6 {[%clk 0:02:46.9]}
25. Re1 {[%clk 0:03:39]} 25... f5 {[%clk 0:02:42]} 26. gxf6 {[%clk 0:03:37.5]}
26... Bxf6 {[%clk 0:02:38.9]} 27. Nxf6+ {[%clk 0:03:36.2]} 27... Rxf6 {[%clk
0:02:37.8]} 28. Ke3 {[%clk 0:03:34.4]} 28... Re6+ {[%clk 0:02:34.9]} 29. Kf2
{[%clk 0:03:33.4]} 29... Rxe1 {[%clk 0:02:30.7]} 30. Kxe1 {[%clk 0:03:32.4]} 1-0

[Event "Live Chess"]
[Site "Chess.com"]
[Date "2024.06.02"]
[Round "-"]
[White "MagnersCarlsberg2870"]
[Black "friarnator"]
[Result "0-1"]
[WhiteElo "1802"]
[BlackElo "2202"]
[TimeControl "300"]
[EndTime "1:58:50 PDT"]
[Termination "friarnator won by resignation"]

1. d4 {[%clk 0:04:57.4]} 1... Nf6 {[%clk 0:04:58.2]} 2. Nf3 {[%clk 0:04:56.5]}
2... g6 {[%clk 0:04:57.5]} 3. Nc3 {[%clk 0:04:55.6]} 3... d6 {[%clk 0:04:55.3]}
4. e4 {[%clk 0:04:54.3]} 4... Bg7 {[%clk 0:04:54]} 5. h3 {[%clk 0:04:53.5]} 5...
a6 {[%clk 0:04:53.2]} 6. a4 {[%clk 0:04:51.7]} 6... O-O {[%clk 0:04:50.6]} 7.
Bc4 {[%clk 0:04:50.9]} 7... c6 {[%clk 0:04:47.3]} 8. Qe2 {[%clk 0:04:49.3]} 8...
d5 {[%clk 0:04:45.2]} 9. exd5 {[%clk 0:04:46.4]} 9... cxd5 {[%clk 0:04:43.2]}
10. Bd3 {[%clk 0:04:40.5]} 10... Nc6 {[%clk 0:04:41.8]} 11. O-O {[%clk
0:04:32.8]} 11... Nxd4 {[%clk 0:04:30.4]} 12. Nxd4 {[%clk 0:04:30.7]} 12... e5
{[%clk 0:04:25]} 13. Nb3 {[%clk 0:04:25.3]} 13... e4 {[%clk 0:04:21.3]} 14. Nxe4
{[%clk 0:04:22.3]} 14... dxe4 {[%clk 0:04:19.6]} 15. Bxe4 {[%clk 0:04:21.4]}
15... Re8 {[%clk 0:04:13.2]} 16. f3 {[%clk 0:04:19.5]} 16... Bf5 {[%clk
0:04:06.6]} 17. Bg5 {[%clk 0:04:17.1]} 17... Bxe4 {[%clk 0:03:52.7]} 18. fxe4
{[%clk 0:04:12.8]} 18... Qb6+ {[%clk 0:03:51.1]} 19. Be3 {[%clk 0:04:08]} 19...
Rxe4 {[%clk 0:03:38.6]} 20. Rf3 {[%clk 0:03:37.7]} 20... Nd5 {[%clk 0:03:26.3]}
21. Nc5 {[%clk 0:03:26.1]} 21... Nxe3 {[%clk 0:03:20.9]} 22. Rxe3 {[%clk
0:03:24.6]} 22... Qxc5 {[%clk 0:03:18.5]} 23. Re1 {[%clk 0:03:18.7]} 23... Rae8
{[%clk 0:03:14.9]} 0-1